bitfinex-derivatives/quotes_SOLF0:USTF0_20250831
["timestamp","ask_amount","ask_price","bid_price","bid_amount"]
[1756599389971,121.6,203.62,203.59,4.52368151]
[1756599390163,129.5,203.62,203.6,4.52268974]
[1756599390359,129.5,203.62,203.56,7.3]
[1756599390567,7.9,203.61,203.57,4.51814872]
[1756599390869,7.9,203.61,203.58,4.51814872]
[1756599391169,7.9,203.61,203.59,4.51814872]
[1756599391367,459.84,203.64,203.6,4.51275552]
[1756599391569,459.84,203.64,203.61,4.51206454]
[1756599391765,459.84,203.64,203.56,7.3]
[1756599391971,459.84,203.64,203.57,4.51141359]
[1756599392163,459.84,203.64,203.56,7.3]
[1756599392164,459.84,203.64,203.58,4.51141359]
[1756599392370,7.9,203.63,203.59,4.51141359]
[1756599392573,7.9,203.63,203.6,4.51141359]
[1756599392874,7.9,203.63,203.56,7.3]
[1756599393172,7.9,203.63,203.57,4.50646861]
[1756599393372,7.9,203.63,203.58,11.80646861]
[1756599393567,7.9,203.63,203.59,4.50646861]
[1756599393767,7.9,203.63,203.58,7.3]
[1756599393971,7.9,203.63,203.59,4.50261484]
[1756599394173,7.9,203.63,203.55,7.3]
[1756599394373,7.9,203.63,203.56,4.5016079]
[1756599394671,7.9,203.63,203.57,4.5016079]
[1756599394866,330.36,203.64,203.58,4.5016079]
[1756599395167,129.46,203.66,203.59,7.3]
[1756599396266,121.56,203.66,203.59,7.3]
[1756599398775,121.56,203.66,203.6,2.39204493]
[1756599400470,121.56,203.66,203.59,9.69204493]
[1756599408586,7.72,203.65,203.59,9.69204493]
[1756599412787,7.72,203.65,203.59,7.3]
[1756599412985,7.72,203.65,203.57,9.94204493]
[1756599415589,7.72,203.65,203.58,7.55]
[1756599417987,7.72,203.65,203.6,2.39204493]
[1756599418191,7.72,203.65,203.61,7.55]
[1756599418991,121.56,203.66,203.6,2.39204493]
[1756599419291,7.72,203.65,203.6,2.39204493]
[1756599420385,121.56,203.66,203.6,2.39204493]
[1756599421389,7.72,203.65,203.6,2.39204493]
[1756599421780,121.56,203.66,203.6,2.39204493]
[1756599421981,7.72,203.64,203.58,9.94204493]
[1756599424992,7.72,203.64,203.58,7.55]
[1756599425182,7.72,203.64,203.53,12.62]
[1756599425183,2.39204493,203.72,203.61,2.39204493]
[1756599425382,7.72,203.7,203.62,7.55]
[1756599433898,7.72,203.7,203.62,11.59023125]
[1756599434298,7.72,203.7,203.62,7.55]
[1756599435295,7.72,203.7,203.62,11.59023125]
[1756599438302,2.39204493,203.67,203.61,4.04023125]
[1756599438496,7.68,203.66,203.59,4.04023125]
[1756599438997,7.68,203.66,203.58,4.04023125]
[1756599441605,7.68,203.66,203.59,7.97]
[1756599442906,7.68,203.66,203.58,4.04023125]
[1756599443907,7.68,203.66,203.59,7.97]
[1756599444207,7.68,203.66,203.59,12.01023125]
[1756599444611,2.39204493,203.69,203.59,12.01023125]
[1756599445206,7.68,203.68,203.59,12.01023125]
[1756599445405,2.39204493,203.69,203.59,12.01023125]
[1756599445906,7.68,203.68,203.59,12.01023125]
[1756599446102,2.39204493,203.69,203.59,12.01023125]
[1756599446507,7.68,203.68,203.6,7.97]
[1756599446709,10.07204493,203.74,203.62,7.97]
[1756599446909,10.07204493,203.74,203.64,7.97]
[1756599447100,2.39204493,203.74,203.64,7.97]
[1756599447301,7.68,203.73,203.64,7.97]
[1756599448008,7.68,203.73,203.64,12.01023125]
[1756599448908,2.39204493,203.74,203.64,12.01023125]
[1756599449511,7.68,203.73,203.64,12.01023125]
[1756599449912,2.39204493,203.74,203.64,7.97]
[1756599450111,7.68,203.73,203.64,7.97]
[1756599451006,7.68,203.64,203.51,13.43540007]
[1756599451309,7.68,203.62,203.51,7.97]
[1756599451510,7.68,203.59,203.51,7.97]
[1756599453414,2.46824115,203.58,203.51,7.97]
[1756599453715,2.46824115,203.57,203.51,7.97]
[1756599453911,2.46824115,203.56,203.49,7.97]
[1756599454116,2.46824115,203.55,203.49,7.97]
[1756599454318,2.46824115,203.54,203.49,7.97]
[1756599454517,2.46824115,203.53,203.49,7.97]
[1756599454712,10.07204493,203.59,203.49,7.97]
[1756599454713,2.46824115,203.52,203.49,7.97]
[1756599454916,2.46824115,203.51,203.49,7.97]
[1756599455117,10.07204493,203.59,203.49,7.97]
[1756599455318,2.46680022,203.58,203.49,7.97]
[1756599455520,2.46680022,203.57,203.49,7.97]
[1756599455715,2.46680022,203.56,203.49,7.97]
[1756599455916,2.46680022,203.55,203.49,7.97]
[1756599456119,2.46680022,203.54,203.48,2.39204493]
[1756599456318,2.46680022,203.53,203.48,2.39204493]
[1756599456620,2.46680022,203.52,203.48,2.39204493]
[1756599456920,10.07204493,203.59,203.49,7.97]
[1756599457116,7.68,203.57,203.49,7.97]
[1756599457316,2.46602483,203.56,203.49,7.97]
[1756599457518,7.81,203.61,203.43,13.2]
[1756599457519,2.46602483,203.55,203.52,7.46]
[1756599457721,2.39204493,203.63,203.52,7.46]
[1756599457920,2.4651562,203.62,203.52,7.46]
[1756599458120,2.4651562,203.61,203.52,7.46]
[1756599458322,2.39204493,203.63,203.52,7.46]
[1756599458323,2.4651562,203.6,203.52,7.46]
[1756599458515,2.4651562,203.59,203.52,7.46]
[1756599458823,7.81,203.64,203.52,7.46]
[1756599458824,2.4651562,203.58,203.52,7.46]
[1756599459020,2.4651562,203.57,203.51,2.39204493]
[1756599459322,2.4651562,203.56,203.51,2.39204493]
[1756599459522,2.4651562,203.55,203.51,2.39204493]
[1756599459726,7.81,203.61,203.52,7.46]
[1756599459924,2.46486957,203.6,203.52,7.46]
[1756599460124,2.46486957,203.59,203.52,7.46]
[1756599460325,2.46486957,203.58,203.52,7.46]
[1756599460524,2.46486957,203.57,203.52,7.46]
[1756599460725,2.46486957,203.56,203.52,7.46]
[1756599460924,7.81,203.61,203.52,7.46]
[1756599460925,2.46486957,203.55,203.52,7.46]
[1756599461127,7.81,203.61,203.52,7.46]
[1756599461421,0.85483732,203.71,203.57,2.39204493]
[1756599461422,2.46456184,203.6,203.57,2.39204493]
[1756599461626,7.81,203.69,203.58,7.46]
[1756599461827,7.81,203.69,203.55,6.92]
[1756599461828,2.46389892,203.68,203.61,7.46]
[1756599462026,2.46389892,203.67,203.61,7.46]
[1756599462227,2.46389892,203.66,203.6,2.39204493]
[1756599462425,2.46389892,203.65,203.6,2.39204493]
[1756599462723,2.46389892,203.64,203.61,7.46]
[1756599462923,2.46389892,203.63,203.6,2.39204493]
[1756599463117,7.81,203.69,203.6,2.39204493]
[1756599463118,7.81,203.69,203.61,7.46]
[1756599463323,2.46372549,203.68,203.61,7.46]
[1756599463526,2.46372549,203.67,203.61,7.46]
[1756599463726,2.46372549,203.66,203.6,2.39204493]
[1756599463923,2.46372549,203.65,203.61,7.46]
[1756599464124,2.46372549,203.64,203.6,2.39204493]
[1756599464324,2.46372549,203.63,203.61,7.46]
[1756599464525,7.81,203.69,203.61,7.46]
[1756599464725,2.46336162,203.68,203.61,7.46]
[1756599464926,2.46336162,203.67,203.61,7.46]
[1756599465126,2.46336162,203.66,203.61,7.46]
[1756599465329,2.46336162,203.65,203.6,2.39204493]
[1756599465528,2.46336162,203.64,203.6,2.39204493]
[1756599465726,2.46336162,203.63,203.6,2.39204493]
[1756599465926,7.81,203.69,203.61,7.46]
[1756599466128,2.47127274,203.68,203.61,7.46]
[1756599466326,2.47127274,203.67,203.61,7.46]
[1756599466526,2.47127274,203.66,203.61,7.46]
[1756599466722,2.47127274,203.65,203.61,7.46]
[1756599466922,2.47127274,203.64,203.6,2.39204493]
[1756599467234,2.47127274,203.63,203.61,7.46]
[1756599467430,7.81,203.69,203.61,7.46]
[1756599467629,2.47103749,203.68,203.61,7.46]
[1756599467826,2.47103749,203.67,203.61,7.46]
[1756599468022,2.47103749,203.66,203.6,2.39204493]
[1756599468330,2.47103749,203.65,203.61,7.46]
[1756599468525,2.47103749,203.64,203.61,7.46]
[1756599468732,2.47103749,203.63,203.6,2.39204493]
[1756599468927,7.81,203.69,203.61,7.46]
[1756599469130,2.47088823,203.68,203.61,7.46]
[1756599469330,2.47088823,203.67,203.61,7.46]
[1756599469627,2.47088823,203.66,203.61,7.46]
[1756599469818,2.47088823,203.65,203.61,7.46]
[1756599470024,2.47088823,203.64,203.61,7.46]
[1756599470223,7.81,203.69,203.61,7.46]
[1756599470419,2.47046516,203.68,203.61,7.46]
[1756599470630,7.81,203.69,203.61,7.46]
[1756599470831,2.47045528,203.68,203.61,7.46]
[1756599471026,2.47045528,203.67,203.61,7.46]
[1756599471227,2.47045528,203.66,203.61,7.46]
[1756599471426,2.47045528,203.65,203.61,7.46]
[1756599471627,2.47045528,203.64,203.6,2.39204493]
[1756599471827,7.81,203.69,203.61,7.46]
[1756599472028,2.47030476,203.68,203.61,7.46]
[1756599472228,2.47030476,203.67,203.61,7.46]
[1756599472427,2.47030476,203.66,203.6,2.39204493]
[1756599472625,2.47030476,203.65,203.61,7.46]
[1756599472833,2.47030476,203.64,203.61,7.46]
[1756599473131,2.47030476,203.63,203.6,2.39204493]
[1756599473326,7.81,203.69,203.61,7.46]
[1756599473631,2.47018856,203.68,203.61,7.46]
[1756599473930,2.47018856,203.67,203.61,7.46]
[1756599474130,10.28018856,203.66,203.6,9.85204493]
[1756599474330,2.47018856,203.65,203.6,9.85204493]
[1756599474531,2.47018856,203.64,203.61,7.46]
[1756599474732,2.47018856,203.63,203.6,2.39204493]
[1756599474932,7.81,203.66,203.61,7.46]
[1756599475128,2.47013559,203.65,203.61,7.46]
[1756599475323,2.47013559,203.64,203.6,2.39204493]
[1756599475523,2.47013559,203.63,203.6,2.39204493]
[1756599475729,7.81,203.66,203.61,7.46]
[1756599475930,2.47008314,203.65,203.6,2.39204493]
[1756599476130,2.47008314,203.64,203.6,2.39204493]
[1756599476431,2.47008314,203.63,203.6,2.39204493]
[1756599476631,7.81,203.66,203.61,7.46]
[1756599476831,2.4700312,203.65,203.61,7.46]
[1756599477026,2.4700312,203.64,203.6,2.39204493]
[1756599477334,2.4700312,203.63,203.6,2.39204493]
[1756599477534,7.81,203.66,203.6,2.39204493]
[1756599477734,2.46996038,203.65,203.6,2.39204493]
[1756599477933,2.46996038,203.64,203.61,7.46]
[1756599478230,2.46996038,203.63,203.6,2.39204493]
[1756599478532,7.81,203.66,203.61,7.46]
[1756599478732,2.46989061,203.65,203.6,2.39204493]
[1756599478934,2.46989061,203.64,203.6,2.39204493]
[1756599479129,7.81,203.66,203.6,2.39204493]
[1756599479434,2.4698431,203.65,203.6,2.39204493]
[1756599479633,2.4698431,203.64,203.61,7.46]
[1756599479837,7.81,203.66,203.6,2.39204493]
[1756599480132,7.81,203.66,203.61,7.46]
[1756599480133,2.4698431,203.65,203.61,7.46]
[1756599480335,2.4698431,203.64,203.61,7.46]
[1756599480635,7.81,203.66,203.6,2.39204493]
[1756599480831,2.46968072,203.65,203.61,7.46]
[1756599481031,7.81,203.66,203.6,2.39204493]
[1756599481032,2.46968072,203.64,203.6,2.39204493]
[1756599481235,7.81,203.66,203.61,7.46]
[1756599481531,2.46952117,203.65,203.61,7.46]
[1756599481729,2.46952117,203.64,203.61,7.46]
[1756599481926,7.81,203.66,203.61,7.46]
[1756599482133,2.46955536,203.65,203.64,7.46]
[1756599482328,7.81,203.7,203.64,7.46]
[1756599482528,7.81,203.68,203.64,7.46]
[1756599482834,2.46920914,203.67,203.64,7.46]
[1756599483035,2.46920914,203.66,203.63,2.39204493]
[1756599483238,7.81,203.71,203.64,7.46]
[1756599483436,2.46877298,203.7,203.64,7.46]
[1756599483735,10.27877298,203.69,203.63,7.46]
[1756599483940,2.46885229,203.68,203.63,7.46]
[1756599484241,10.27885229,203.67,203.61,2.39204493]
[1756599484436,7.81,203.65,203.61,9.85204493]
[1756599484738,2.46885229,203.64,203.61,9.85204493]
[1756599484935,2.4688872,203.63,203.58,7.46]
[1756599485135,10.2788872,203.62,203.58,7.46]
[1756599485336,2.4688872,203.61,203.58,7.46]
[1756599485536,7.81,203.62,203.58,7.46]
[1756599485839,2.46926263,203.61,203.57,2.39204493]
[1756599486137,7.81,203.62,203.57,2.39204493]
[1756599486338,2.46935199,203.61,203.57,2.39204493]
[1756599486635,7.81,203.62,203.58,7.46]
[1756599486835,2.46935199,203.61,203.57,2.39204493]
[1756599487035,7.81,203.62,203.58,7.46]
[1756599487237,2.46953713,203.61,203.6,9.85204493]
[1756599487431,7.27,203.73,203.61,7.49]
[1756599487638,7.27,203.73,203.65,9.88204493]
[1756599489135,7.27,203.73,203.66,7.49]
[1756599494138,66.51575952,204.5,203.72,7.49]
[1756599494139,7.27,203.78,203.72,7.49]
[1756599494342,7.27,203.78,203.76,2.39204493]
[1756599494544,7.27,203.86,203.76,2.39204493]
[1756599495939,7.27,203.84,203.73,2.39204493]
[1756599499449,7.27,203.82,203.73,2.39204493]
[1756599499749,7.27,203.8,203.73,2.39204493]
[1756599499944,2.39863143,203.79,203.73,2.39204493]
[1756599500138,7.27,203.77,203.73,9.88204493]
[1756599500343,2.39863143,203.76,203.73,9.88204493]
[1756599501551,2.39863143,203.76,203.74,7.49]
[1756599501848,7.27,203.77,203.74,7.49]
[1756599502049,2.39946293,203.76,203.74,7.49]
[1756599502255,2.40013103,203.75,203.74,7.49]
[1756599503046,7.27,203.77,203.74,7.49]
[1756599503252,2.39971149,203.76,203.74,7.49]
[1756599503452,7.27,203.77,203.74,7.49]
[1756599503647,2.40019927,203.76,203.74,7.49]
[1756599503950,7.27,203.77,203.74,7.49]
[1756599504151,2.40019927,203.76,203.74,7.49]
[1756599504344,7.27,203.77,203.74,7.49]
[1756599504543,2.40052689,203.76,203.74,7.49]
[1756599504748,7.27,203.77,203.74,7.49]
[1756599504949,2.400527,203.76,203.74,7.49]
[1756599505147,7.27,203.77,203.74,7.49]
[1756599505349,2.40101856,203.76,203.74,7.49]
[1756599505549,2.40101856,203.75,203.74,7.49]
[1756599506149,7.27,203.82,203.74,7.49]
[1756599506349,2.40149866,203.81,203.74,7.49]
[1756599506546,2.40149866,203.8,203.74,7.49]
[1756599506849,2.40149866,203.79,203.73,7.49]
[1756599507053,2.40149866,203.78,203.72,2.39204493]
[1756599507257,2.40149866,203.77,203.73,7.49]
[1756599507455,7.27,203.81,203.73,7.49]
[1756599507655,2.40087103,203.8,203.73,7.49]
[1756599507954,7.27,203.81,203.73,7.49]
[1756599507955,2.40087103,203.79,203.73,7.49]
[1756599508156,2.40087103,203.78,203.73,7.49]
[1756599508353,2.40087103,203.77,203.73,2.39204493]
[1756599508655,7.27,203.8,203.74,7.49]
[1756599508856,7.27,203.78,203.74,7.49]
[1756599509058,2.40042534,203.77,203.73,2.39204493]
[1756599509357,7.27,203.86,203.74,7.49]
[1756599509657,7.27,203.84,203.74,7.49]
[1756599509861,7.27,203.82,203.74,7.49]
[1756599510156,7.27,203.8,203.71,7.49]
[1756599510356,2.39204493,203.84,203.71,7.49]
[1756599510357,2.40001426,203.79,203.71,7.49]
[1756599510658,9.67001426,203.78,203.71,7.49]
[1756599510856,2.40001426,203.77,203.71,7.49]
[1756599511051,2.40001426,203.76,203.7,2.39204493]
[1756599511252,2.40001426,203.75,203.67,4.0731595]
[1756599511454,2.40001426,203.74,203.71,7.49]
[1756599511649,7.27,203.78,203.71,7.49]
[1756599511864,0.85420783,203.87,203.68,7.49]
[1756599511865,7.27,203.76,203.68,7.49]
[1756599512164,2.39996087,203.75,203.68,7.49]
[1756599512349,2.39996087,203.74,203.68,7.49]
[1756599512553,2.39996087,203.73,203.67,2.39204493]
[1756599512755,2.4005914,203.72,203.67,2.39204493]
[1756599512951,2.4005914,203.71,203.67,2.39204493]
[1756599513152,7.27,203.74,203.68,7.49]
[1756599513356,2.40085019,203.73,203.68,7.49]
[1756599513657,2.40085019,203.72,203.67,2.39204493]
[1756599513859,7.27,203.74,203.68,7.49]
[1756599514060,2.40073127,203.73,203.67,9.88204493]
[1756599514259,9.67073127,203.72,203.68,7.49]
[1756599514560,330.65420783,203.87,203.66,7.49]
[1756599514561,2.40105905,203.71,203.66,7.49]
[1756599514760,7.27,203.73,203.66,7.49]
[1756599514961,2.40104936,203.72,203.66,7.49]
[1756599515162,2.40104936,203.71,203.65,2.39204493]
[1756599515357,2.40104936,203.7,203.66,7.49]
[1756599515661,7.27,203.72,203.66,7.49]
[1756599515863,2.40129004,203.71,203.66,7.49]
[1756599516160,2.40129004,203.7,203.66,7.49]
[1756599516360,7.27,203.72,203.66,7.49]
[1756599516552,2.40151564,203.71,203.65,2.39204493]
[1756599516756,2.40151564,203.7,203.65,2.39204493]
[1756599517057,7.27,203.72,203.66,7.49]
[1756599517360,2.40172606,203.71,203.65,2.39204493]
[1756599517662,2.40172606,203.7,203.65,2.39204493]
[1756599517961,7.35,203.7,203.65,2.39204493]
[1756599518159,7.35,203.7,203.64,2.39204493]
[1756599518463,7.35,203.7,203.65,7.35]
[1756599518858,7.35,203.7,203.64,2.39204493]
[1756599519059,9.7521638,203.69,203.64,2.39204493]
[1756599519359,2.40247305,203.68,203.65,7.35]
[1756599519558,7.35,203.69,203.65,7.35]
[1756599519759,2.40250976,203.68,203.65,7.35]
[1756599519955,7.35,203.69,203.65,7.35]
[1756599520161,2.40250976,203.68,203.65,7.35]
[1756599520364,7.35,203.68,203.65,7.35]
[1756599520762,9.75285922,203.67,203.64,2.39204493]
[1756599520956,7.35,203.67,203.64,2.39204493]
[1756599521155,7.35,203.67,203.62,7.35]
[1756599521357,7.35,203.67,203.61,6.46520443]
[1756599521555,7.35,203.67,203.62,7.35]
[1756599521766,2.40322671,203.66,203.61,13.81520443]
[1756599521966,7.35,203.67,203.61,13.81520443]
[1756599522266,2.40322671,203.66,203.61,6.46520443]
[1756599522462,7.35,203.67,203.62,7.35]
[1756599522667,2.40342161,203.66,203.62,7.35]
[1756599522866,7.35,203.67,203.61,6.46520443]
[1756599523167,2.40342161,203.66,203.62,7.35]
[1756599523362,7.35,203.67,203.62,7.35]
[1756599523567,2.40362071,203.66,203.62,7.35]
[1756599523768,7.35,203.71,203.62,7.35]
[1756599523969,2.40361082,203.7,203.62,7.35]
[1756599524170,2.40361082,203.69,203.63,2.39204493]
[1756599524468,9.75361082,203.68,203.63,2.39204493]
[1756599524662,2.40361082,203.67,203.63,2.39204493]
[1756599524859,2.40361082,203.66,203.63,2.39204493]
[1756599525063,7.35,203.68,203.61,4.0731595]
[1756599525265,2.40381763,203.67,203.64,7.35]
[1756599525468,2.40381763,203.66,203.64,7.35]
[1756599525670,7.35,203.68,203.64,7.35]
[1756599525873,7.35,203.66,203.61,4.0731595]
[1756599526062,7.35,203.64,203.59,7.35]
[1756599526269,7.35,203.62,203.59,7.35]
[1756599527072,7.35,203.69,203.59,7.35]
[1756599527266,2.39204493,203.7,203.59,7.35]
[1756599527267,7.35,203.67,203.59,7.35]
[1756599527460,2.39204493,203.7,203.59,7.35]
[1756599527461,7.35,203.65,203.59,7.35]
[1756599527669,2.4034552,203.64,203.59,7.35]
[1756599527870,7.35,203.62,203.59,7.35]
[1756599528371,2.40288323,203.61,203.55,2.39204493]
[1756599528672,7.35,203.64,203.56,7.35]
[1756599528871,2.40294718,203.63,203.56,7.35]
[1756599529187,2.40294718,203.62,203.56,7.35]
[1756599529369,7.35,203.6,203.56,7.35]
[1756599529563,7.35,203.66,203.56,7.35]
[1756599529766,7.35,203.64,203.56,7.35]
[1756599529966,2.4022282,203.63,203.56,7.35]
[1756599530172,9.7522282,203.62,203.56,7.35]
[1756599530372,2.4022282,203.61,203.56,7.35]
[1756599530672,7.35,203.66,203.56,7.35]
[1756599530868,7.35,203.64,203.56,7.35]
[1756599531069,2.40191509,203.63,203.58,2.39204493]
[1756599531264,2.40191509,203.62,203.58,2.39204493]
[1756599531569,7.35,203.67,203.59,7.35]
[1756599531872,2.40170491,203.66,203.59,7.35]
[1756599532067,2.40170491,203.65,203.59,7.35]
[1756599532267,2.40170491,203.64,203.59,7.35]
[1756599532469,2.40170491,203.63,203.59,7.35]
[1756599532668,2.40170491,203.62,203.59,7.35]
[1756599532869,7.35,203.67,203.59,7.35]
[1756599533070,2.40176621,203.66,203.59,7.35]
[1756599533269,2.40176621,203.65,203.59,7.35]
[1756599533470,2.40176621,203.64,203.58,9.74204493]
[1756599533773,7.35,203.62,203.58,7.35]
[1756599534173,2.40052758,203.61,203.58,7.35]
[1756599534371,7.35,203.66,203.58,7.35]
[1756599534566,7.35,203.64,203.58,7.35]
[1756599534772,7.35,203.62,203.58,7.35]
[1756599535075,7.35,203.66,203.56,7.35]
[1756599535275,2.39983525,203.65,203.56,7.35]
[1756599535574,2.39983525,203.64,203.56,7.35]
[1756599535874,2.39983525,203.63,203.56,7.35]
[1756599536074,2.39983525,203.62,203.56,7.35]
[1756599536377,7.35,203.66,203.56,7.35]
[1756599536572,2.39919693,203.65,203.56,7.35]
[1756599536772,2.39919693,203.64,203.56,7.35]
[1756599536970,2.39919693,203.63,203.56,7.35]
[1756599537173,2.39919693,203.62,203.56,7.35]
[1756599537374,7.35,203.66,203.56,7.35]
[1756599537579,2.39858734,203.65,203.56,7.35]
[1756599537777,2.39858713,203.64,203.56,7.35]
[1756599537977,2.39858713,203.63,203.56,7.35]
[1756599538178,7.35,203.66,203.56,7.35]
[1756599538383,2.39809911,203.65,203.56,7.35]
[1756599538579,2.39809911,203.64,203.56,7.35]
[1756599538777,2.39809911,203.63,203.56,7.35]
[1756599540078,7.35,203.62,203.56,7.35]
[1756599540280,7.35,203.62,203.54,77.8401314]
[1756599540477,7.35,203.6,203.54,77.8401314]
[1756599540677,2.39797929,203.59,203.54,77.8401314]
[1756599540881,7.35,203.58,203.54,85.1901314]
[1756599541578,7.35,203.58,203.55,7.35]
[1756599543583,2.39204493,203.64,203.54,77.8401314]
[1756599543886,7.35,203.57,203.5,7.35]
[1756599544080,7.35,203.55,203.5,7.35]
[1756599544280,7.35,203.53,203.46,7.35]
[1756599544484,2.39700511,203.52,203.46,7.35]
[1756599544682,7.35,203.53,203.46,7.35]
[1756599545286,2.39445636,203.52,203.41,9.74204493]
[1756599545482,7.35,203.54,203.42,7.35]
[1756599545685,7.35,203.52,203.42,7.35]
[1756599545888,2.39444348,203.51,203.42,7.35]
[1756599546086,7.35,203.52,203.42,7.35]
[1756599546887,7.35,203.5,203.42,7.35]
[1756599547678,2.39176004,203.49,203.42,7.35]
[1756599547884,7.35,203.5,203.42,7.35]
[1756599548084,2.39189596,203.49,203.42,7.35]
[1756599548284,7.35,203.5,203.42,7.35]
[1756599548486,2.39051999,203.49,203.42,7.35]
[1756599548791,7.35,203.5,203.42,7.35]
[1756599549087,2.39051017,203.49,203.42,7.35]
[1756599549287,7.35,203.5,203.42,7.35]
[1756599551593,2.38790581,203.49,203.42,7.35]
[1756599551886,7.35,203.5,203.38,2.39204493]
[1756599552093,7.4,203.48,203.39,7.75]
[1756599552393,2.38792543,203.47,203.39,7.75]
[1756599552599,7.4,203.46,203.39,7.75]
[1756599553786,7.4,203.46,203.36,7.75]
[1756599553990,7.4,203.44,203.36,7.75]
[1756599555688,7.4,203.44,203.36,10.14204493]
[1756599558695,7.4,203.44,203.36,7.75]
[1756599562996,0.03542304,203.42,203.36,7.75]
[1756599567300,7.4,203.51,203.42,7.75]
[1756599567492,2.38503108,203.5,203.42,7.75]
[1756599567689,7.4,203.51,203.42,7.75]
[1756599567892,2.38506098,203.5,203.42,7.75]
[1756599568089,7.4,203.51,203.42,7.75]
[1756599568292,2.38570931,203.5,203.42,7.75]
[1756599568492,7.4,203.51,203.44,0.03705205]
[1756599568689,2.39204493,203.48,203.44,0.03705205]
[1756599568900,7.4,203.46,203.44,0.03705205]
[1756599569099,9.78601626,203.45,203.39,7.75]
[1756599569295,7.4,203.45,203.39,7.75]
[1756599569496,7.4,203.45,203.43,0.03621655]
[1756599570200,2.39204493,203.48,203.43,0.03621655]
[1756599570396,2.38812558,203.47,203.43,0.03621655]
[1756599570596,7.4,203.45,203.43,0.03621655]
[1756599572100,2.39204493,203.48,203.43,0.03621655]
[1756599572302,7.4,203.46,203.43,0.03621655]
[1756599572502,7.4,203.44,203.43,0.03621655]
[1756599572804,9.78916314,203.44,203.43,0.03621655]
[1756599575902,9.79106492,203.44,203.43,0.03621655]
[1756599577802,2.39106492,203.44,203.43,7.89621655]
[1756599578006,7.44,203.52,203.43,7.89621655]
[1756599578196,2.39348592,203.51,203.43,7.89621655]
[1756599578396,7.44,203.52,203.43,7.86]
[1756599578397,2.39348592,203.5,203.43,7.86]
[1756599578600,2.39348592,203.49,203.43,7.86]
[1756599578802,2.39348592,203.48,203.46,7.86]
[1756599579005,7.44,203.53,203.46,7.86]
[1756599579296,2.39374435,203.52,203.46,7.86]
[1756599579497,2.39483625,203.51,203.46,7.86]
[1756599579694,9.83204493,203.57,203.48,7.86]
[1756599579897,2.39446335,203.56,203.48,7.86]
[1756599580201,2.39446335,203.55,203.5,0.03442093]
[1756599580506,9.83446335,203.54,203.5,7.89442093]
[1756599580696,2.39446335,203.53,203.5,7.89442093]
[1756599581804,2.39446335,203.53,203.51,7.86]
[1756599582204,2.39446335,203.52,203.51,7.86]
[1756599582405,2.39446335,203.54,203.51,7.86]
[1756599582609,2.39446335,203.53,203.51,7.86]
[1756599582802,2.39446335,203.52,203.51,7.86]
[1756599583399,2.39446335,203.52,203.5,0.03442093]
[1756599583604,2.39446335,203.51,203.5,0.03442093]
[1756599583805,9.83446335,203.51,203.5,0.03442093]
[1756599586106,2.39446335,203.51,203.5,7.89442093]
[1756599586311,7.44,203.57,203.5,7.89442093]
[1756599586312,2.39446335,203.56,203.5,7.89442093]
[1756599586506,9.83446335,203.55,203.51,7.86]
[1756599586707,2.40315353,203.54,203.51,7.86]
[1756599586908,2.40315353,203.53,203.51,7.86]